[Event "Late-Titled-Tuesday-Blitz-April-23-2024"]
[Site "Chess.com"]
[Date "2024.04.23"]
[Round "2"]
[White "TheAlienParty"]
[Black "Oleg_Papayan"]
[Result "1-0"]
[WhiteElo "2419"]
[BlackElo "2648"]
[TimeControl "180+1"]
[EndTime "14:17:02 PDT"]
[Termination "TheAlienParty won by resignation"]

1. Nf3 {[%clk 0:02:59.6]} 1... Nf6 {[%clk 0:02:56.4]} 2. g3 {[%clk 0:02:58.7]}
2... c5 {[%clk 0:02:53.9]} 3. Bg2 {[%clk 0:02:58.3]} 3... Nc6 {[%clk 0:02:54.5]}
4. d4 {[%clk 0:02:52.5]} 4... cxd4 {[%clk 0:02:55.4]} 5. Nxd4 {[%clk 0:02:52.1]}
5... e5 {[%clk 0:02:54.1]} 6. Nf3 {[%clk 0:02:46.5]} 6... d5 {[%clk 0:02:50.8]}
7. O-O {[%clk 0:02:46.2]} 7... Bc5 {[%clk 0:02:43]} 8. c4 {[%clk 0:02:45.2]}
8... d4 {[%clk 0:02:37]} 9. a3 {[%clk 0:02:41]} 9... a5 {[%clk 0:02:36.9]} 10.
Qa4 {[%clk 0:02:29.5]} 10... O-O {[%clk 0:02:33]} 11. Qb5 {[%clk 0:02:28.4]}
11... Qb6 {[%clk 0:02:20.5]} 12. Bg5 {[%clk 0:02:26.4]} 12... Ne4 {[%clk
0:01:51.2]} 13. Nbd2 {[%clk 0:02:14.1]} 13... Nd6 {[%clk 0:01:45.8]} 14. Qxb6
{[%clk 0:02:04.1]} 14... Bxb6 {[%clk 0:01:46.7]} 15. b4 {[%clk 0:02:01.4]} 15...
f6 {[%clk 0:01:30.3]} 16. c5 {[%clk 0:01:54.2]} 16... fxg5 {[%clk 0:01:09.3]}
17. Nxg5 {[%clk 0:01:53.1]} 17... axb4 {[%clk 0:00:57.7]} 18. axb4 {[%clk
0:01:44]} 18... Rxa1 {[%clk 0:00:58.6]} 19. Rxa1 {[%clk 0:01:43.1]} 19... Nxb4
{[%clk 0:00:59.1]} 20. cxd6 {[%clk 0:01:41.8]} 20... d3 {[%clk 0:00:48.3]} 21.
e3 {[%clk 0:01:35]} 21... Nc2 {[%clk 0:00:26.3]} 22. Ra8 {[%clk 0:01:29.9]}
22... Nxe3 {[%clk 0:00:21.5]} 23. fxe3 {[%clk 0:01:15.2]} 23... Bxe3+ {[%clk
0:00:22.4]} 24. Kh1 {[%clk 0:01:14.8]} 24... Bxg5 {[%clk 0:00:18.2]} 25. d7
{[%clk 0:01:10.4]} 25... Bxd2 {[%clk 0:00:07]} 26. Bd5+ {[%clk 0:01:08.9]} 26...
Kh8 {[%clk 0:00:07.2]} 27. Rxc8 {[%clk 0:01:06.1]} 1-0

[Event "Late-Titled-Tuesday-Blitz-April-23-2024"]
[Site "Chess.com"]
[Date "2024.04.23"]
[Round "2"]
[White "Rodalquilar"]
[Black "PapaieDudu"]
[Result "1-0"]
[WhiteElo "2745"]
[BlackElo "2429"]
[TimeControl "180+1"]
[EndTime "14:17:03 PDT"]
[Termination "Rodalquilar won by resignation"]

1. d4 {[%clk 0:03:00.9]} 1... d5 {[%clk 0:02:59.7]} 2. Nf3 {[%clk 0:03:01.4]}
2... Nf6 {[%clk 0:02:59]} 3. Bf4 {[%clk 0:03:01.8]} 3... c5 {[%clk 0:02:58.3]}
4. e3 {[%clk 0:03:02.3]} 4... Nc6 {[%clk 0:02:58.4]} 5. c3 {[%clk 0:03:01.5]}
5... Bg4 {[%clk 0:02:56.5]} 6. Nbd2 {[%clk 0:02:57.4]} 6... e6 {[%clk
0:02:54.6]} 7. Qb3 {[%clk 0:02:57.7]} 7... Qd7 {[%clk 0:02:48.7]} 8. Ne5 {[%clk
0:02:56.9]} 8... Nxe5 {[%clk 0:02:40]} 9. dxe5 {[%clk 0:02:57.1]} 9... c4 {[%clk
0:02:40]} 10. Nxc4 {[%clk 0:02:27.6]} 10... dxc4 {[%clk 0:02:39.7]} 11. Bxc4
{[%clk 0:02:28.5]} 11... O-O-O {[%clk 0:02:36.8]} 12. exf6 {[%clk 0:02:28.3]}
12... Qd2+ {[%clk 0:02:12.8]} 13. Kf1 {[%clk 0:02:28.6]} 13... gxf6 {[%clk
0:01:54.7]} 14. h3 {[%clk 0:01:41.3]} 14... Bh5 {[%clk 0:01:53.1]} 15. g4 {[%clk
0:01:40.9]} 15... Bg6 {[%clk 0:01:51.5]} 16. Be2 {[%clk 0:01:41.2]} 16... e5
{[%clk 0:01:38.3]} 17. Rd1 {[%clk 0:01:35.7]} 17... exf4 {[%clk 0:00:48.9]} 18.
Rxd2 {[%clk 0:01:21.8]} 18... Rxd2 {[%clk 0:00:48.4]} 19. Bf3 {[%clk 0:01:22.4]}
19... b6 {[%clk 0:00:42.7]} 20. exf4 {[%clk 0:01:19.8]} 20... Bc5 {[%clk
0:00:30.7]} 21. Rh2 {[%clk 0:01:20.2]} 21... Bd3+ {[%clk 0:00:21.6]} 22. Ke1
{[%clk 0:00:57.7]} 22... Rc2 {[%clk 0:00:18.3]} 23. Qd5 {[%clk 0:00:57.9]} 23...
Re8+ {[%clk 0:00:18.7]} 24. Kd1 {[%clk 0:00:58.4]} 24... Rd8 {[%clk 0:00:11.9]}
25. Qc6+ {[%clk 0:00:58.1]} 1-0

[Event "Late-Titled-Tuesday-Blitz-April-23-2024"]
[Site "Chess.com"]
[Date "2024.04.23"]
[Round "2"]
[White "Jospem"]
[Black "Romkachess"]
[Result "1-0"]
[WhiteElo "3088"]
[BlackElo "2670"]
[TimeControl "180+1"]
[EndTime "14:17:06 PDT"]
[Termination "Jospem won on time"]

1. e4 {[%clk 0:03:00.9]} 1... e5 {[%clk 0:02:43.5]} 2. Nf3 {[%clk 0:03:00.8]}
2... Nc6 {[%clk 0:02:36.5]} 3. Nc3 {[%clk 0:03:00.8]} 3... Nf6 {[%clk
0:02:30.9]} 4. h3 {[%clk 0:03:00.8]} 4... h6 {[%clk 0:02:15.3]} 5. d4 {[%clk
0:03:00.5]} 5... exd4 {[%clk 0:02:14.8]} 6. Nxd4 {[%clk 0:03:01.4]} 6... Bb4
{[%clk 0:02:14.1]} 7. Nxc6 {[%clk 0:03:02.1]} 7... bxc6 {[%clk 0:02:14.4]} 8.
Bd3 {[%clk 0:03:02.9]} 8... O-O {[%clk 0:02:14]} 9. O-O {[%clk 0:03:03.2]} 9...
d5 {[%clk 0:02:13.8]} 10. exd5 {[%clk 0:03:04.1]} 10... cxd5 {[%clk 0:02:13.7]}
11. Qf3 {[%clk 0:03:04.7]} 11... c6 {[%clk 0:02:13.6]} 12. Bf4 {[%clk
0:03:04.7]} 12... Bd6 {[%clk 0:02:13.5]} 13. Rad1 {[%clk 0:03:04.9]} 13... Rb8
{[%clk 0:02:13.4]} 14. b3 {[%clk 0:03:05.2]} 14... Rb4 {[%clk 0:02:13.4]} 15.
Ne2 {[%clk 0:03:05.5]} 15... Bxf4 {[%clk 0:02:11.7]} 16. Nxf4 {[%clk 0:03:06.4]}
16... Bb7 {[%clk 0:01:18.3]} 17. c4 {[%clk 0:03:03.4]} 17... Ba8 {[%clk
0:01:00.8]} 18. Rfe1 {[%clk 0:03:02.2]} 18... Re8 {[%clk 0:00:58.6]} 19. Bf1
{[%clk 0:02:55.4]} 19... Rxe1 {[%clk 0:00:51.4]} 20. Rxe1 {[%clk 0:02:56.3]}
20... c5 {[%clk 0:00:51.8]} 21. Qe3 {[%clk 0:02:40.2]} 21... d4 {[%clk
0:00:48.9]} 22. Qe5 {[%clk 0:02:40.2]} 22... Qc8 {[%clk 0:00:42.9]} 23. Nd3
{[%clk 0:02:38.7]} 23... Rb6 {[%clk 0:00:22.9]} 24. Qxc5 {[%clk 0:02:37.7]}
24... Qd8 {[%clk 0:00:22]} 25. Qa5 {[%clk 0:02:33]} 25... Ne4 {[%clk 0:00:09.5]}
26. c5 {[%clk 0:02:26.7]} 26... Rb8 {[%clk 0:00:09.1]} 27. Qxa7 {[%clk
0:02:22.9]} 27... Nd2 {[%clk 0:00:09.2]} 28. Qe7 {[%clk 0:02:17.9]} 28... Qc8
{[%clk 0:00:08.1]} 29. Qe2 {[%clk 0:02:07.1]} 29... Nxf1 {[%clk 0:00:06.9]} 30.
Rxf1 {[%clk 0:02:08]} 30... Qf5 {[%clk 0:00:06.9]} 31. Qe5 {[%clk 0:02:04.3]}
31... Qc8 {[%clk 0:00:05.2]} 32. Qxd4 {[%clk 0:02:03.5]} 32... Qc6 {[%clk
0:00:04.8]} 33. f3 {[%clk 0:02:01.4]} 33... Re8 {[%clk 0:00:05.2]} 34. Re1
{[%clk 0:02:01.1]} 34... Rc8 {[%clk 0:00:03.6]} 35. b4 {[%clk 0:01:57.3]} 35...
Qg6 {[%clk 0:00:04]} 36. Kf2 {[%clk 0:01:55.3]} 36... Bc6 {[%clk 0:00:02.8]} 37.
Ne5 {[%clk 0:01:52.8]} 37... Qc2+ {[%clk 0:00:02.7]} 38. Re2 {[%clk 0:01:53.4]}
38... Qc1 {[%clk 0:00:02.3]} 39. Nxc6 {[%clk 0:01:53.3]} 39... Rxc6 {[%clk
0:00:03.2]} 40. h4 {[%clk 0:01:46.4]} 40... h5 {[%clk 0:00:02.8]} 41. Qe3 {[%clk
0:01:40.6]} 41... Qh1 {[%clk 0:00:02.3]} 42. Qg5 {[%clk 0:01:34]} 1-0

[Event "Late-Titled-Tuesday-Blitz-April-23-2024"]
[Site "Chess.com"]
[Date "2024.04.23"]
[Round "2"]
[White "Cambek64"]
[Black "zacachess"]
[Result "1-0"]
[WhiteElo "2531"]
[BlackElo "2327"]
[TimeControl "180+1"]
[EndTime "14:17:11 PDT"]
[Termination "Cambek64 won by checkmate"]

1. e4 {[%clk 0:02:55.3]} 1... c5 {[%clk 0:02:59.4]} 2. Nf3 {[%clk 0:02:54.1]}
2... d6 {[%clk 0:02:59.7]} 3. c3 {[%clk 0:02:53.6]} 3... Nf6 {[%clk 0:02:59.4]}
4. Bd3 {[%clk 0:02:54.2]} 4... Bg4 {[%clk 0:02:54]} 5. O-O {[%clk 0:02:51]} 5...
Nc6 {[%clk 0:02:53.7]} 6. Re1 {[%clk 0:02:51.4]} 6... g6 {[%clk 0:02:50.9]} 7.
h3 {[%clk 0:02:50.9]} 7... Bxf3 {[%clk 0:02:49.6]} 8. Qxf3 {[%clk 0:02:51.8]}
8... Bg7 {[%clk 0:02:50]} 9. Bb5 {[%clk 0:02:49.2]} 9... O-O {[%clk 0:02:39.4]}
10. Bxc6 {[%clk 0:02:47.3]} 10... bxc6 {[%clk 0:02:40.3]} 11. d4 {[%clk
0:02:45.7]} 11... cxd4 {[%clk 0:02:36.2]} 12. cxd4 {[%clk 0:02:46.1]} 12... e5
{[%clk 0:02:32.9]} 13. dxe5 {[%clk 0:02:43.8]} 13... dxe5 {[%clk 0:02:33.8]} 14.
Nc3 {[%clk 0:02:43.9]} 14... Nd7 {[%clk 0:02:16.3]} 15. Be3 {[%clk 0:02:42.7]}
15... Qe7 {[%clk 0:02:02.6]} 16. Rac1 {[%clk 0:02:41.3]} 16... Nb6 {[%clk
0:01:38.5]} 17. b3 {[%clk 0:02:35]} 17... Rfd8 {[%clk 0:01:34.2]} 18. Rc2 {[%clk
0:02:34.3]} 18... Rd3 {[%clk 0:01:01.7]} 19. Qe2 {[%clk 0:02:30.4]} 19... Rad8
{[%clk 0:01:01.1]} 20. Nd5 {[%clk 0:02:24.1]} 20... Nxd5 {[%clk 0:00:57.5]} 21.
Qxd3 {[%clk 0:02:24]} 21... Nb4 {[%clk 0:00:54.1]} 22. Qc4 {[%clk 0:02:23.5]}
22... Nxc2 {[%clk 0:00:53.7]} 23. Qxc2 {[%clk 0:02:24.1]} 23... Qd7 {[%clk
0:00:42.5]} 24. Rc1 {[%clk 0:02:23.3]} 24... Rc8 {[%clk 0:00:30.5]} 25. Qc5
{[%clk 0:02:22.6]} 25... a6 {[%clk 0:00:28.6]} 26. Qa5 {[%clk 0:02:18.9]} 26...
Qd3 {[%clk 0:00:28.1]} 27. Rc4 {[%clk 0:02:15.6]} 27... h6 {[%clk 0:00:19.4]}
28. Qxa6 {[%clk 0:02:14.4]} 28... Rd8 {[%clk 0:00:15.5]} 29. Bb6 {[%clk
0:01:56.5]} 29... Qb1+ {[%clk 0:00:15.1]} 30. Kh2 {[%clk 0:01:53.4]} 30... Rd1
{[%clk 0:00:15.3]} 31. Rxc6 {[%clk 0:01:50.8]} 31... Qxe4 {[%clk 0:00:14]} 32.
Qc4 {[%clk 0:01:47]} 32... Qe1 {[%clk 0:00:11.3]} 33. Rc8+ {[%clk 0:01:46.2]}
33... Kh7 {[%clk 0:00:10.6]} 34. Qxf7 {[%clk 0:01:41.6]} 34... Qg1+ {[%clk
0:00:10]} 35. Kg3 {[%clk 0:01:41.3]} 35... Rd3+ {[%clk 0:00:10.3]} 36. Be3
{[%clk 0:01:41.3]} 36... Rxe3+ {[%clk 0:00:06.9]} 37. fxe3 {[%clk 0:01:41.6]}
37... Qxe3+ {[%clk 0:00:07.8]} 38. Kh2 {[%clk 0:01:41.8]} 38... e4 {[%clk
0:00:05.8]} 39. Qg8# {[%clk 0:01:37.6]} 1-0

[Event "Late-Titled-Tuesday-Blitz-April-23-2024"]
[Site "Chess.com"]
[Date "2024.04.23"]
[Round "2"]
[White "ZachHKL"]
[Black "adricalderon8"]
[Result "0-1"]
[WhiteElo "2278"]
[BlackElo "2515"]
[TimeControl "180+1"]
[EndTime "14:17:14 PDT"]
[Termination "adricalderon8 won by checkmate"]

1. e4 {[%clk 0:03:00.9]} 1... c5 {[%clk 0:02:58.4]} 2. Nf3 {[%clk 0:02:59.7]}
2... d6 {[%clk 0:02:58.2]} 3. d4 {[%clk 0:02:59.6]} 3... cxd4 {[%clk 0:02:57.6]}
4. Nxd4 {[%clk 0:03:00.5]} 4... Nf6 {[%clk 0:02:57.6]} 5. Nc3 {[%clk 0:02:59.7]}
5... Nc6 {[%clk 0:02:58.1]} 6. Bg5 {[%clk 0:02:57.4]} 6... e6 {[%clk 0:02:57.9]}
7. Qd2 {[%clk 0:02:55.6]} 7... a6 {[%clk 0:02:57.7]} 8. O-O-O {[%clk 0:02:54.9]}
8... Bd7 {[%clk 0:02:57.6]} 9. f4 {[%clk 0:02:51.4]} 9... Be7 {[%clk 0:02:53.2]}
10. Qe1 {[%clk 0:02:47.5]} 10... h6 {[%clk 0:02:49]} 11. Nxc6 {[%clk 0:02:41.8]}
11... bxc6 {[%clk 0:02:43.3]} 12. Bxf6 {[%clk 0:02:40.7]} 12... gxf6 {[%clk
0:02:42.1]} 13. Qg3 {[%clk 0:02:37.2]} 13... Kf8 {[%clk 0:02:40]} 14. f5 {[%clk
0:02:32.3]} 14... e5 {[%clk 0:02:38.1]} 15. Bc4 {[%clk 0:02:29.6]} 15... Rb8
{[%clk 0:02:37.3]} 16. Rhf1 {[%clk 0:02:21.8]} 16... Qb6 {[%clk 0:02:33.8]} 17.
Bb3 {[%clk 0:02:18.6]} 17... a5 {[%clk 0:02:33.9]} 18. Rf3 {[%clk 0:02:14.4]}
18... Qb4 {[%clk 0:02:08.4]} 19. Qg4 {[%clk 0:02:07.8]} 19... h5 {[%clk
0:02:05.4]} 20. Qh4 {[%clk 0:02:04.1]} 20... d5 {[%clk 0:02:05.8]} 21. a3 {[%clk
0:01:55.9]} 21... Qb7 {[%clk 0:01:44.8]} 22. exd5 {[%clk 0:01:52.4]} 22... a4
{[%clk 0:01:44.1]} 23. d6 {[%clk 0:01:45.1]} 23... axb3 {[%clk 0:01:42.2]} 24.
dxe7+ {[%clk 0:01:44.2]} 24... Kxe7 {[%clk 0:01:42.7]} 25. Re1 {[%clk
0:01:25.5]} 25... Qc7 {[%clk 0:01:35.7]} 26. Rfe3 {[%clk 0:01:21.5]} 26... Bxf5
{[%clk 0:01:27.5]} 27. Rxe5+ {[%clk 0:01:18.1]} 27... Be6 {[%clk 0:01:28]} 28.
Rc5 {[%clk 0:00:54.5]} 28... Qd6 {[%clk 0:01:23.5]} 29. Ra5 {[%clk 0:00:42.3]}
29... Rb7 {[%clk 0:01:15.7]} 30. cxb3 {[%clk 0:00:37.3]} 30... Rd8 {[%clk
0:01:12.1]} 31. Kb1 {[%clk 0:00:25.4]} 31... Qd3+ {[%clk 0:01:08.9]} 32. Ka1
{[%clk 0:00:24.3]} 32... Rxb3 {[%clk 0:01:04.9]} 33. Ra7+ {[%clk 0:00:23.9]}
33... Rd7 {[%clk 0:01:01.7]} 34. Rxd7+ {[%clk 0:00:19.9]} 34... Qxd7 {[%clk
0:01:02.6]} 35. Ne4 {[%clk 0:00:17.1]} 35... Qd4 {[%clk 0:01:01.1]} 36. Rf1
{[%clk 0:00:15.4]} 36... Qxb2# {[%clk 0:01:00.4]} 0-1

[Event "Late-Titled-Tuesday-Blitz-April-23-2024"]
[Site "Chess.com"]
[Date "2024.04.23"]
[Round "2"]
[White "LuisFSiles"]
[Black "Harsha_Bharathakoti"]
[Result "0-1"]
[WhiteElo "2434"]
[BlackElo "2906"]
[TimeControl "180+1"]
[EndTime "14:17:19 PDT"]
[Termination "Harsha_Bharathakoti won on time"]

1. e4 {[%clk 0:03:00.9]} 1... c5 {[%clk 0:03:00]} 2. Nf3 {[%clk 0:02:58.4]} 2...
e6 {[%clk 0:03:00.5]} 3. c3 {[%clk 0:02:58.2]} 3... Nf6 {[%clk 0:03:00]} 4. e5
{[%clk 0:02:58.2]} 4... Nd5 {[%clk 0:03:00.6]} 5. Bc4 {[%clk 0:02:58.5]} 5... d6
{[%clk 0:03:00.1]} 6. d4 {[%clk 0:02:58.4]} 6... cxd4 {[%clk 0:03:00.2]} 7. cxd4
{[%clk 0:02:59.3]} 7... Be7 {[%clk 0:03:00.6]} 8. O-O {[%clk 0:02:58.9]} 8...
O-O {[%clk 0:03:01.3]} 9. Qe2 {[%clk 0:02:58.5]} 9... dxe5 {[%clk 0:03:01.6]}
10. dxe5 {[%clk 0:02:57.9]} 10... Bd7 {[%clk 0:03:02.3]} 11. Bd2 {[%clk
0:02:49.2]} 11... Bc6 {[%clk 0:02:57.7]} 12. Nc3 {[%clk 0:02:49.3]} 12... Nxc3
{[%clk 0:02:49.8]} 13. Bxc3 {[%clk 0:02:48.8]} 13... Bxf3 {[%clk 0:02:48.7]} 14.
Qxf3 {[%clk 0:02:47.3]} 14... Nc6 {[%clk 0:02:49.6]} 15. Rad1 {[%clk 0:02:35.9]}
15... Qc7 {[%clk 0:02:49.2]} 16. Bd3 {[%clk 0:02:11.9]} 16... g6 {[%clk
0:02:41.2]} 17. Rde1 {[%clk 0:02:05.5]} 17... Rfd8 {[%clk 0:02:29]} 18. Be4
{[%clk 0:02:05.6]} 18... Rac8 {[%clk 0:02:28.9]} 19. g3 {[%clk 0:02:03.3]} 19...
b5 {[%clk 0:02:10.1]} 20. b3 {[%clk 0:01:13.3]} 20... Nd4 {[%clk 0:01:59.1]} 21.
Bxd4 {[%clk 0:01:11.9]} 21... Rxd4 {[%clk 0:02:00]} 22. Bb7 {[%clk 0:00:49.5]}
22... Rcd8 {[%clk 0:01:47.6]} 23. h4 {[%clk 0:00:37.8]} 23... Rd2 {[%clk
0:01:34.5]} 24. h5 {[%clk 0:00:33.5]} 24... Rxa2 {[%clk 0:01:14.6]} 25. Be4
{[%clk 0:00:20.1]} 25... Bb4 {[%clk 0:00:58.8]} 26. hxg6 {[%clk 0:00:16]} 26...
hxg6 {[%clk 0:00:59.7]} 27. Re3 {[%clk 0:00:11]} 27... Bc5 {[%clk 0:01:00]} 28.
Ree1 {[%clk 0:00:10.4]} 28... Rdd2 {[%clk 0:00:58]} 29. Rc1 {[%clk 0:00:01.8]}
29... Rxf2 {[%clk 0:00:55.4]} 0-1

[Event "Late-Titled-Tuesday-Blitz-April-23-2024"]
[Site "Chess.com"]
[Date "2024.04.23"]
[Round "2"]
[White "MuhittinBuker"]
[Black "Flaccidmoves"]
[Result "1-0"]
[WhiteElo "2156"]
[BlackElo "2439"]
[TimeControl "180+1"]
[EndTime "14:17:21 PDT"]
[Termination "MuhittinBuker won by resignation"]

1. d4 {[%clk 0:03:00.9]} 1... Nf6 {[%clk 0:02:56.8]} 2. c4 {[%clk 0:03:00.1]}
2... g6 {[%clk 0:02:57.1]} 3. Nc3 {[%clk 0:02:59.8]} 3... Bg7 {[%clk 0:02:57.1]}
4. e4 {[%clk 0:03:00.2]} 4... O-O {[%clk 0:02:57.5]} 5. Nf3 {[%clk 0:03:00.8]}
5... d6 {[%clk 0:02:57.6]} 6. Be2 {[%clk 0:03:01.7]} 6... e5 {[%clk 0:02:57.8]}
7. O-O {[%clk 0:03:02.1]} 7... Nc6 {[%clk 0:02:58.1]} 8. d5 {[%clk 0:03:02.5]}
8... Ne7 {[%clk 0:02:58]} 9. Ne1 {[%clk 0:03:03.2]} 9... Nd7 {[%clk 0:02:53.9]}
10. Nd3 {[%clk 0:03:03.8]} 10... f5 {[%clk 0:02:47.9]} 11. Bd2 {[%clk
0:03:03.8]} 11... Nf6 {[%clk 0:02:41.2]} 12. f3 {[%clk 0:03:03.7]} 12... c6
{[%clk 0:02:24.8]} 13. a4 {[%clk 0:02:49.4]} 13... c5 {[%clk 0:02:23.9]} 14. a5
{[%clk 0:02:47.3]} 14... Rb8 {[%clk 0:02:15.3]} 15. b4 {[%clk 0:02:45.7]} 15...
cxb4 {[%clk 0:02:11]} 16. Nxb4 {[%clk 0:02:43.6]} 16... Nd7 {[%clk 0:02:07.8]}
17. Nd3 {[%clk 0:02:42.8]} 17... b6 {[%clk 0:02:02.3]} 18. Nb5 {[%clk 0:02:40]}
18... Nc5 {[%clk 0:02:01.6]} 19. Nxc5 {[%clk 0:02:34.5]} 19... bxc5 {[%clk
0:02:01.3]} 20. Nxa7 {[%clk 0:02:34.5]} 20... Bd7 {[%clk 0:01:58.9]} 21. Nb5
{[%clk 0:02:31.5]} 21... Be8 {[%clk 0:01:54.3]} 22. a6 {[%clk 0:02:31]} 22... f4
{[%clk 0:01:49.2]} 23. a7 {[%clk 0:02:24.3]} 23... Ra8 {[%clk 0:01:48.7]} 24.
Ba5 {[%clk 0:02:24.9]} 24... Qd7 {[%clk 0:01:46.2]} 25. Bc7 {[%clk 0:02:20.3]}
25... Nc8 {[%clk 0:01:41.9]} 26. Bb8 {[%clk 0:02:18.6]} 26... g5 {[%clk
0:01:25.4]} 27. Qa4 {[%clk 0:02:14.5]} 27... h5 {[%clk 0:01:14]} 28. Qa5 {[%clk
0:02:14.7]} 28... g4 {[%clk 0:01:05.8]} 29. Qc7 {[%clk 0:02:10.4]} 29... Rf7
{[%clk 0:00:36.2]} 30. Qxd7 {[%clk 0:02:02.7]} 30... Rxd7 {[%clk 0:00:37.1]} 31.
fxg4 {[%clk 0:01:58.9]} 31... h4 {[%clk 0:00:32.1]} 32. g5 {[%clk 0:01:57.9]}
32... Rb7 {[%clk 0:00:27.2]} 33. Bg4 {[%clk 0:01:53.6]} 33... Nb6 {[%clk
0:00:19.6]} 34. Nxd6 {[%clk 0:01:46.6]} 34... Rbxb8 {[%clk 0:00:18.5]} 35.
axb8=Q {[%clk 0:01:44]} 35... Rxb8 {[%clk 0:00:19.4]} 36. Rfb1 {[%clk
0:01:39.4]} 36... Bg6 {[%clk 0:00:12]} 37. Be6+ {[%clk 0:01:33.1]} 37... Kh7
{[%clk 0:00:11.8]} 38. Bf5 {[%clk 0:01:32.4]} 38... Bxf5 {[%clk 0:00:09.8]} 39.
exf5 {[%clk 0:01:31.9]} 39... e4 {[%clk 0:00:08.5]} 40. Ra6 {[%clk 0:01:30]}
40... Bd4+ {[%clk 0:00:07.7]} 41. Kf1 {[%clk 0:01:29]} 41... Nd7 {[%clk
0:00:07.6]} 42. Rxb8 {[%clk 0:01:26.7]} 42... Nxb8 {[%clk 0:00:08.5]} 43. Rb6
{[%clk 0:01:23.4]} 43... Kg8 {[%clk 0:00:09.1]} 44. Rxb8+ {[%clk 0:01:23.1]} 1-0

[Event "Late-Titled-Tuesday-Blitz-April-23-2024"]
[Site "Chess.com"]
[Date "2024.04.23"]
[Round "2"]
[White "Mops_2004"]
[Black "CarrotsandPizza"]
[Result "1-0"]
[WhiteElo "2873"]
[BlackElo "2601"]
[TimeControl "180+1"]
[EndTime "14:17:25 PDT"]
[Termination "Mops_2004 won on time"]

1. g3 {[%clk 0:03:00.9]} 1... h5 {[%clk 0:02:59.6]} 2. Nf3 {[%clk 0:03:00.9]}
2... Nc6 {[%clk 0:02:58.5]} 3. d4 {[%clk 0:03:00]} 3... d6 {[%clk 0:02:59]} 4.
c4 {[%clk 0:02:57.6]} 4... e5 {[%clk 0:02:59.3]} 5. dxe5 {[%clk 0:02:51.3]} 5...
Nxe5 {[%clk 0:03:00.2]} 6. Bg2 {[%clk 0:02:47]} 6... Nxf3+ {[%clk 0:02:59.5]} 7.
Bxf3 {[%clk 0:02:47.2]} 7... h4 {[%clk 0:03:00]} 8. Nc3 {[%clk 0:02:45.2]} 8...
hxg3 {[%clk 0:02:54.6]} 9. hxg3 {[%clk 0:02:45.1]} 9... Rxh1+ {[%clk 0:02:54.7]}
10. Bxh1 {[%clk 0:02:46]} 10... c6 {[%clk 0:02:52.4]} 11. Bf4 {[%clk 0:02:43.4]}
11... Qb6 {[%clk 0:02:45]} 12. Qd2 {[%clk 0:02:38.8]} 12... Be6 {[%clk
0:02:42.3]} 13. b3 {[%clk 0:02:38.7]} 13... O-O-O {[%clk 0:02:41.9]} 14. Rc1
{[%clk 0:02:29.5]} 14... f5 {[%clk 0:02:35.7]} 15. Nd5 {[%clk 0:02:21.9]} 15...
Qa6 {[%clk 0:02:31.8]} 16. b4 {[%clk 0:02:01.7]} 16... Kb8 {[%clk 0:01:47.3]}
17. b5 {[%clk 0:02:00.2]} 17... Qa4 {[%clk 0:01:25.5]} 18. bxc6 {[%clk
0:01:59.6]} 18... bxc6 {[%clk 0:01:24.3]} 19. Nb4 {[%clk 0:01:04]} 19... Ne7
{[%clk 0:00:35.9]} 20. Bxd6+ {[%clk 0:01:03.7]} 20... Kc8 {[%clk 0:00:36.3]} 21.
c5 {[%clk 0:01:02]} 21... Nd5 {[%clk 0:00:33.9]} 22. Nxd5 {[%clk 0:00:59.5]}
22... cxd5 {[%clk 0:00:13.6]} 23. Bxd5 {[%clk 0:00:51.9]} 23... Qd7 {[%clk
0:00:07.3]} 24. Bf3 {[%clk 0:00:44.8]} 24... Qf7 {[%clk 0:00:05.8]} 25. Qa5
{[%clk 0:00:42.2]} 1-0

[Event "Late-Titled-Tuesday-Blitz-April-23-2024"]
[Site "Chess.com"]
[Date "2024.04.23"]
[Round "2"]
[White "micke12a"]
[Black "stollenmonster"]
[Result "0-1"]
[WhiteElo "2436"]
[BlackElo "2917"]
[TimeControl "180+1"]
[EndTime "14:17:25 PDT"]
[Termination "stollenmonster won by checkmate"]

1. d4 {[%clk 0:03:00.9]} 1... Nf6 {[%clk 0:02:59.6]} 2. Bf4 {[%clk 0:02:55.7]}
2... e6 {[%clk 0:02:59.9]} 3. e3 {[%clk 0:02:55.6]} 3... d5 {[%clk 0:03:00.5]}
4. c4 {[%clk 0:02:54.3]} 4... Be7 {[%clk 0:03:00.2]} 5. Nc3 {[%clk 0:02:54]}
5... Ne4 {[%clk 0:02:59.5]} 6. Qc2 {[%clk 0:02:50.3]} 6... f5 {[%clk 0:02:59.1]}
7. Nxe4 {[%clk 0:02:47.9]} 7... fxe4 {[%clk 0:02:57.7]} 8. a3 {[%clk 0:02:46.5]}
8... c6 {[%clk 0:02:57.3]} 9. f3 {[%clk 0:02:39.3]} 9... exf3 {[%clk 0:02:57]}
10. Nxf3 {[%clk 0:02:39.4]} 10... Nd7 {[%clk 0:02:54.5]} 11. Bd3 {[%clk
0:02:37.4]} 11... Nf6 {[%clk 0:02:54.9]} 12. Ne5 {[%clk 0:02:34.6]} 12... O-O
{[%clk 0:02:52.6]} 13. g4 {[%clk 0:02:31.8]} 13... Ne4 {[%clk 0:02:49.4]} 14.
Bxe4 {[%clk 0:02:27.2]} 14... dxe4 {[%clk 0:02:49.8]} 15. Qxe4 {[%clk
0:02:21.7]} 15... Qa5+ {[%clk 0:02:49.3]} 16. Ke2 {[%clk 0:02:08.2]} 16... Qa4
{[%clk 0:02:49.1]} 17. Qd3 {[%clk 0:01:49.6]} 17... c5 {[%clk 0:02:46.1]} 18. b3
{[%clk 0:01:41.6]} 18... Qe8 {[%clk 0:02:45.2]} 19. d5 {[%clk 0:01:30.6]} 19...
exd5 {[%clk 0:02:42.6]} 20. Qxd5+ {[%clk 0:01:30.4]} 20... Kh8 {[%clk
0:02:42.8]} 21. h4 {[%clk 0:01:16.3]} 21... Bf6 {[%clk 0:02:39.3]} 22. g5 {[%clk
0:01:16]} 22... Bxe5 {[%clk 0:02:34]} 23. Qxe5 {[%clk 0:01:11.2]} 23... Bg4+
{[%clk 0:02:32.9]} 24. Kd2 {[%clk 0:01:03.3]} 24... Qc6 {[%clk 0:02:25]} 25.
Rhg1 {[%clk 0:00:53.3]} 25... Rad8+ {[%clk 0:02:18.2]} 26. Kc1 {[%clk
0:00:46.2]} 26... Rfe8 {[%clk 0:01:46.6]} 27. Qc3 {[%clk 0:00:41.8]} 27... Bf5
{[%clk 0:01:41.8]} 28. h5 {[%clk 0:00:37.8]} 28... Rd3 {[%clk 0:01:41.1]} 29.
Qb2 {[%clk 0:00:37.9]} 29... Qe4 {[%clk 0:01:08.7]} 30. h6 {[%clk 0:00:34.6]}
30... Re7 {[%clk 0:01:08.7]} 31. hxg7+ {[%clk 0:00:19.2]} 31... Kg8 {[%clk
0:01:07.6]} 32. Re1 {[%clk 0:00:19.1]} 32... Red7 {[%clk 0:01:03.6]} 33. Ra2
{[%clk 0:00:14.9]} 33... Rc3+ {[%clk 0:00:58.5]} 34. Qxc3 {[%clk 0:00:08.6]}
34... Qb1# {[%clk 0:00:57.5]} 0-1